fUST/lending_fUST_20241221
["ID","MTS","AMOUNT","RATE_DAILY","PERIOD"]
[346204098,1734773656683,-64.49214551,0.00019178,2]
[346204099,1734773656695,-435.50785449,0.00019178,2]
[346204100,1734773656705,-64.49214551,0.00019178,2]
[346204101,1734773656717,-435.50785449,0.00019178,2]
[346204102,1734773656727,-66.5444758,0.00019178,2]
[346204103,1734773656739,-433.4555242,0.00019178,2]
[346204104,1734773656749,-66.5444758,0.00019178,2]
[346204105,1734773656760,-345.91519507,0.00019178,2]
[346204106,1734773656770,-500.0,0.00019178,2]
[346204107,1734773656779,-59.96480493,0.00019178,2]
[346204108,1734773656791,-415.17569612,0.00019178,2]
[346204112,1734774051816,240.0,0.00025,120]
[346204118,1734774242260,4754.44377267,0.000221,60]
[346204119,1734774453516,188.670246,0.00013973,2]
[346204123,1734774632497,-1849.49574604,0.00017502,2]
[346204124,1734774632507,-320.449,0.0001822,2]
[346204125,1734774632516,-305.63188,0.00018986,2]
[346204126,1734774632525,-300.0,0.00018999,2]
[346204127,1734774632534,-300.0,0.00018999,2]
[346204128,1734774632543,-531.636,0.00019,2]
[346204129,1734774632552,-1477.78687396,0.00019,2]
[346204185,1734774641326,-660.21312604,0.00019,2]
[346204186,1734774641336,-2362.0,0.00019,2]
[346204187,1734774641345,-166.71119486,0.00019078,2]
[346204188,1734774641354,-297.85,0.00019177,2]
[346204189,1734774641363,-214.86122271,0.00019177,2]
[346204190,1734774641373,-500.0,0.00019177,2]
[346204191,1734774641382,-500.0,0.00019177,2]
[346204192,1734774641391,-500.0,0.00019177,2]
[346204193,1734774641400,-500.0,0.00019177,2]
[346204194,1734774641410,-500.0,0.00019177,2]
[346204195,1734774641420,-500.0,0.00019177,2]
[346204196,1734774641429,-650.55279862,0.00019177,2]
[346204197,1734774641439,-563.99,0.00019178,2]
[346204198,1734774641450,-500.0,0.00019178,2]
[346204199,1734774641459,-514.04,0.00019178,2]
[346204200,1734774641469,-500.0,0.00019178,2]
[346204201,1734774641478,-500.0,0.00019178,2]
[346204202,1734774641487,-1168.87,0.00019178,2]
[346204203,1734774641496,-500.0,0.00019178,2]
[346204204,1734774641506,-500.0,0.00019178,2]
[346204205,1734774641515,-500.0,0.00019178,2]
[346204206,1734774641525,-500.0,0.00019178,2]
[346204207,1734774641534,-500.0,0.00019178,2]
[346204208,1734774641544,-500.0,0.00019178,2]
[346204209,1734774641553,-500.0,0.00019178,2]
[346204210,1734774641562,-500.0,0.00019178,2]
[346204211,1734774641572,-500.0,0.00019178,2]
[346204212,1734774641581,-500.0,0.00019178,2]
[346204213,1734774641590,-500.0,0.00019178,2]
[346204214,1734774641600,-646.21,0.00019178,2]
[346204215,1734774641609,-500.0,0.00019178,2]
[346204216,1734774641620,-508.82,0.00019178,2]
[346204217,1734774641630,-500.0,0.00019178,2]
[346204218,1734774641639,-500.0,0.00019178,2]
[346204219,1734774641648,-500.0,0.00019178,2]
[346204220,1734774641658,-500.0,0.00019178,2]
[346204221,1734774641669,-500.0,0.00019178,2]
[346204222,1734774641678,-500.0,0.00019178,2]
[346204223,1734774641687,-505.17495973,0.00019178,2]
[346204224,1734774641700,-500.0,0.00019178,2]
[346204225,1734774641710,-500.0,0.00019178,2]
[346204226,1734774641720,-234.43177303,0.00019178,2]
[346204268,1734774646025,-0.82030249,0.00019178,2]
[346204352,1734774646843,-264.74792448,0.00019178,2]
[346204354,1734774646853,-12.84207552,0.00019178,2]
[346204492,1734775391872,179.236733,0.00013973,2]
[346204496,1734775666378,10000.0,0.00025,120]
[346204530,1734775832877,-237.49450623,0.00017641,2]
[346204531,1734775832886,-947.1484829,0.00017802,2]
[346204532,1734775832895,-300.0,0.00017999,2]
[346204533,1734775832906,-300.0,0.00017999,2]
[346204534,1734775832915,-405.61697762,0.00017999,2]
[346204535,1734775832925,-2072.29608691,0.00018,2]
[346204536,1734775832943,-19709.0,0.00018,2]
[346204556,1734775838593,-2173.43249883,0.00018,2]
[346204847,1734775843640,-2780.14949023,0.00018,2]
[346218630,1734776241595,170.274896,0.00013973,2]
[346218647,1734776808338,509018.98645589,0.00024998,120]
[346218649,1734776889612,20000.0,0.00024729,120]
[346218653,1734776924864,100000.0,0.00024,120]
[346218654,1734776931960,1000.0,0.00023,100]
[346218682,1734777033028,-641.08501413,0.00017583,2]
[346218684,1734777033038,-3762.20360047,0.00017773,2]
[346218688,1734777033048,-300.0,0.00017999,2]
[346218691,1734777033058,-300.0,0.00017999,2]
[346218694,1734777033067,-2701.95337424,0.00018,2]
[346218697,1734777033079,-6582.57017056,0.00018,2]
[346218714,1734777038802,-20337.11128038,0.00018,2]
[346218719,1734777040921,-971.50940056,0.00018,2]
[346219043,1734777046879,-344.86890015,0.00018,2]
[346221077,1734777156975,161.761151,0.00013973,2]
[346221078,1734777394708,6311.6125896,0.0001,2]
[346221081,1734777881226,322.0,0.0002,60]
[346221085,1734778121423,1394.9574083,0.0001698,2]
[346221116,1734778232288,-300.0,0.0001768,2]
[346221118,1734778232297,-300.0,0.0001768,2]
[346221120,1734778232307,-10331.06832518,0.00017681,2]
[346221123,1734778232318,-1199.27366754,0.00017681,2]
[346221125,1734778232330,-3729.91893378,0.00017681,2]
[346221127,1734778232340,-382.63170639,0.000177,2]
[346221129,1734778232349,-1562.0,0.000178,2]
[346221131,1734778232359,-166.71119486,0.000179,2]
[346221133,1734778232369,-19214.57487814,0.00018,2]
[346221135,1734778232379,-1539.61144025,0.00018,2]
[346221419,1734778240327,-4621.89047837,0.00018,2]
[346221677,1734778243273,-4590.54002345,0.00018,2]
[346223139,1734778274220,161.761151,0.00013973,2]
[346223140,1734778314299,324.673,0.000171,2]
[346223141,1734778383768,310.856,0.000171,2]
[346223142,1734778450427,297.881,0.000171,2]
[346223143,1734778583921,285.473,0.000171,2]
[346223144,1734778965663,273.638,0.000171,2]
[346223147,1734779032742,262.568,0.000171,2]
[346223148,1734779160936,161.761151,0.00013973,2]
[346223150,1734779223924,251.39,0.000171,2]
[346223154,1734779292753,240.935,0.000171,2]
[346223157,1734779359574,231.12,0.000171,2]
[346223196,1734779432794,-163.6746467,0.0001768,2]
[346223198,1734779432804,-609.8529334,0.00017782,2]
[346223200,1734779432814,-152.81594,0.0001782,2]
[346223202,1734779432824,-272.960966,0.00017836,2]
[346223204,1734779432834,-329.27951994,0.00018,2]
[346223209,1734779432872,-3609.53822756,0.00018,2]
[346223341,1734779438210,-4309.14031043,0.00018,2]
[346223343,1734779438219,-150.52154497,0.00018462,2]
[346223345,1734779438229,-300.0,0.00018564,2]
[346223347,1734779438241,-166.0,0.00018566,2]
[346223349,1734779438251,-166.0,0.00018566,2]
[346223351,1734779438261,-168.81,0.00018566,2]
[346223353,1734779438270,-229.0,0.0001868,2]
[346223355,1734779438281,-153.3256923,0.000187,2]
[346223357,1734779438290,-352.0971134,0.000187,2]
[346223359,1734779438300,-150.52154497,0.000187,2]
[346223361,1734779438310,-153.0,0.000187,2]
[346223363,1734779438319,-805.3166252,0.000187,2]
[346223365,1734779438329,-153.3256923,0.000187,2]
[346223368,1734779438339,-1853.0745179,0.00018787,2]
[346223370,1734779438351,-284.9254821,0.00018787,2]
[346223372,1734779438360,-174.85608602,0.00018787,2]
[346223981,1734779446349,-2187.14391398,0.00018787,2]
[346223983,1734779446360,-403.49955251,0.000188,2]
[346223985,1734779446370,-352.0971134,0.000188,2]
[346223987,1734779446380,-153.3256923,0.000188,2]
[346223990,1734779446391,-154.8460118,0.000188,2]
[346223992,1734779446401,-153.0,0.000188,2]
[346223994,1734779446412,-352.0971134,0.000188,2]
[346223996,1734779446421,-476.07667,0.000188,2]
[346223998,1734779446430,-153.3256923,0.000188,2]
[346224000,1734779446442,-166.0,0.00018889,2]
[346224002,1734779446452,-1000.0,0.00018967,2]
[346224004,1734779446461,-6579.24594031,0.00018999,7]
[346224466,1734780055977,161.761151,0.00013973,2]
[346224467,1734780294888,2406.29316577,2.5e-05,2]
[346224796,1734780638387,-272.9609663,0.00017737,2]
[346224798,1734780638397,-326.5591481,0.00017879,2]
[346224800,1734780638407,-1611.0740955,0.00017937,2]
[346224802,1734780638417,-1500.0,0.00017937,2]
[346224804,1734780638426,-238.739,0.0001802,2]
[346224806,1734780638436,-300.0,0.00018048,2]
[346224808,1734780638446,-300.0,0.00018048,2]
[346224810,1734780638456,-156.0,0.00018049,2]
[346224812,1734780638466,-156.0,0.00018049,2]
[346224814,1734780638476,-156.0,0.00018049,2]
[346224816,1734780638488,-156.0,0.00018049,2]
[346224818,1734780638497,-156.0,0.00018049,2]
[346224820,1734780638508,-156.0,0.00018049,2]
[346224824,1734780638520,-156.0,0.00018049,2]
[346224826,1734780638530,-156.0,0.00018049,2]
[346224828,1734780638540,-156.0,0.00018049,2]
[346224829,1734780638551,-156.0,0.00018049,2]
[346224831,1734780638561,-156.0,0.00018049,2]
[346224834,1734780638571,-156.0,0.00018049,2]
[346224836,1734780638581,-156.0,0.00018049,2]
[346224838,1734780638592,-156.0,0.00018049,2]
[346224839,1734780638602,-156.0,0.00018049,2]
[346224841,1734780638612,-156.0,0.00018049,2]
[346224844,1734780638622,-156.0,0.00018049,2]
[346224846,1734780638631,-156.0,0.00018049,2]
[346224848,1734780638643,-156.0,0.00018049,2]
[346224850,1734780638653,-156.0,0.00018049,2]
[346224851,1734780638663,-174.0,0.00018049,2]
[346224853,1734780638672,-231.0,0.0001867,2]
[346224855,1734780638682,-152.8159401,0.00018777,2]
[346224857,1734780638692,-858.131,0.00018834,2]
[346224859,1734780638702,-2362.0,0.00018834,2]
[346224861,1734780638711,-166.71119486,0.00018899,2]
[346224863,1734780638721,-1000.0,0.00018913,2]
[346224865,1734780638730,-1000.0,0.00018932,2]
[346224867,1734780638740,-152.0,0.00018983,2]
[346224869,1734780638749,-158734.00865214,0.00018999,7]
[346224873,1734780638779,-6481.15113542,0.00018999,7]
[346224876,1734780638791,-25333.41141335,0.00018999,7]
[346225415,1734780646438,-7840.0,0.00018999,7]
[346225534,1734781054344,157.74417,0.00013973,2]
[346225869,1734781840790,-453.9318209,0.00017802,2]
[346225870,1734781840801,-235.2424736,0.00017827,2]
[346225871,1734781840811,-300.0,0.00017927,2]
[346225872,1734781840821,-300.0,0.00017927,2]
[346225873,1734781840830,-24900.0,0.00017928,2]
[346225874,1734781840840,-414.0,0.0001866,2]
[346225875,1734781840849,-161.6490592,0.00018793,2]
[346225876,1734781840859,-2362.0,0.00018814,2]
[346225877,1734781840868,-177.74095652,0.00018818,2]
[346225878,1734781840879,-250.0,0.0001882,2]
[346225879,1734781840888,-265.05,0.000189,2]
[346225880,1734781840901,-1000.0,0.00018909,2]
[346225882,1734781840911,-1000.0,0.00018918,2]
[346225884,1734781840921,-1000.0,0.00018942,2]
[346225886,1734781840930,-1000.0,0.00018948,2]
[346225888,1734781840941,-152.0,0.00018969,2]
[346225890,1734781840951,-500.0,0.00018973,2]
[346225892,1734781840960,-351.45084686,0.00018973,2]
[346225894,1734781840970,-287.15425033,0.00018973,2]
[346225895,1734781840981,-1000.0,0.00018978,2]
[346225896,1734781840990,-235.73253484,0.00018997,2]
[346225897,1734781841000,-324.79548526,0.00018997,2]
[346225898,1734781841009,-500.76203414,0.00018997,2]
[346225899,1734781841019,-500.0,0.00018997,2]
[346225900,1734781841029,-500.0,0.00018997,2]
[346225901,1734781841040,-500.0,0.00018997,2]
[346225902,1734781841049,-256.31090834,0.00018997,2]
[346225903,1734781841058,-507.22424755,0.00018997,2]
[346225904,1734781841068,-500.0,0.00018997,2]
[346225905,1734781841079,-500.0,0.00018997,2]
[346225906,1734781841090,-500.0,0.00018997,2]
[346225907,1734781841100,-500.0,0.00018997,2]
[346225908,1734781841110,-500.0,0.00018997,2]
[346225909,1734781841120,-500.0,0.00018997,2]
[346225910,1734781841130,-500.0,0.00018997,2]
[346225911,1734781841140,-500.0,0.00018997,2]
[346225912,1734781841150,-500.0,0.00018997,2]
[346225913,1734781841160,-500.0,0.00018997,2]
[346225914,1734781841169,-500.0,0.00018997,2]
[346225915,1734781841178,-500.0,0.00018997,2]
[346225916,1734781841188,-500.0,0.00018997,2]
[346225917,1734781841197,-500.0,0.00018997,2]
[346225918,1734781841207,-500.0,0.00018997,2]
[346225919,1734781841216,-500.0,0.00018997,2]
[346225920,1734781841226,-500.0,0.00018997,2]
[346225921,1734781841235,-500.0,0.00018997,2]
[346225922,1734781841243,-500.0,0.00018997,2]
[346225923,1734781841253,-500.0,0.00018997,2]
[346225924,1734781841262,-592.7784061,0.00018997,2]
[346225925,1734781841272,-500.0,0.00018997,2]
[346225926,1734781841281,-500.0,0.00018997,2]
[346225927,1734781841291,-500.0,0.00018997,2]
[346225928,1734781841301,-500.0,0.00018997,2]
[346225929,1734781841311,-500.0,0.00018997,2]
[346225930,1734781841320,-500.0,0.00018997,2]
[346225931,1734781841329,-500.0,0.00018997,2]
[346225932,1734781841339,-500.0,0.00018997,2]
[346225933,1734781841348,-500.0,0.00018997,2]
[346225934,1734781841358,-500.0,0.00018997,2]
[346225935,1734781841367,-315.87301543,0.00018997,2]
[346225936,1734781841376,-500.0,0.00018997,2]
[346225937,1734781841386,-500.0,0.00018997,2]
[346225938,1734781841395,-500.0,0.00018997,2]
[346225939,1734781841405,-500.0,0.00018997,2]
[346225940,1734781841414,-500.0,0.00018997,2]
[346225941,1734781841423,-500.0,0.00018997,2]
[346225942,1734781841433,-500.0,0.00018997,2]
[346225943,1734781841442,-500.0,0.00018997,2]
[346225944,1734781841451,-500.0,0.00018997,2]
[346225945,1734781841461,-500.0,0.00018997,2]
[346225946,1734781841471,-500.0,0.00018997,2]
[346225947,1734781841480,-500.0,0.00018997,2]
[346225948,1734781841489,-500.0,0.00018997,2]
[346225949,1734781841498,-500.0,0.00018997,2]
[346225950,1734781841508,-500.0,0.00018997,2]
[346225951,1734781841518,-650.0,0.00018997,2]
[346225952,1734781841527,-500.0,0.00018997,2]
[346225953,1734781841537,-129375.69937647,0.00018998,7]
[346225954,1734781841552,-293.47199999,0.00018998,7]
[346225955,1734781841569,-19667.39999999,0.00018998,7]
[346226004,1734781843829,-345.450003,0.00018998,7]
[346226005,1734781843840,-403307.75277321,0.00018998,7]
[346226074,1734781933434,164.457261,0.00013973,2]
[346226079,1734782952353,24880.0,0.00016978,2]
[346226099,1734783032545,164.457261,0.00013973,2]
[346226123,1734783032829,-156.81191579,0.0001756,2]
[346226125,1734783032840,-2332.57409521,0.00017581,2]
[346226187,1734783039278,-1604.02379579,0.00017581,2]
[346226188,1734783039292,-1037.96723675,0.0001766,2]
[346226189,1734783039301,-177.74095652,0.00017703,2]
[346226190,1734783039310,-2645.8219269,0.00017803,2]
[346226191,1734783039319,-300.0,0.00017909,2]
[346226192,1734783039330,-1400.2264889,0.0001791,2]
[346226193,1734783039339,-246.01,0.0001805,2]
[346226194,1734783039348,-177.74095652,0.00018435,2]
[346226195,1734783039358,-500.0,0.00018815,2]
[346226196,1734783039367,-500.0,0.00018815,2]
[346226197,1734783039377,-500.0,0.00018815,2]
[346226198,1734783039386,-500.0,0.00018815,2]
[346226199,1734783039396,-500.0,0.00018815,2]
[346226200,1734783039406,-305.64719405,0.00018815,2]
[346226201,1734783039423,-194.35280595,0.00018815,2]
[346226202,1734783039433,-500.0,0.00018815,2]
[346226203,1734783039443,-500.0,0.00018815,2]
[346226204,1734783039453,-500.0,0.00018815,2]
[346226205,1734783039462,-372.80590056,0.00018815,2]
[346226206,1734783039474,-127.19409944,0.00018815,2]
[346226207,1734783039484,-500.0,0.00018815,2]
[346226208,1734783039493,-389.86782969,0.00018815,2]
[346226209,1734783039502,-500.0,0.00018815,2]
[346226210,1734783039510,-500.0,0.00018815,2]
[346226211,1734783039520,-500.0,0.00018815,2]
[346226212,1734783039529,-500.0,0.00018815,2]
[346226213,1734783039538,-500.0,0.00018815,2]
[346226214,1734783039547,-574.72033883,0.00018815,2]
[346226215,1734783039556,-500.0,0.00018815,2]
[346226216,1734783039565,-500.0,0.00018815,2]
[346226217,1734783039574,-500.0,0.00018815,2]
[346226218,1734783039583,-500.0,0.00018815,2]
[346226219,1734783039592,-500.0,0.00018815,2]
[346226220,1734783039602,-190.53195348,0.00018815,2]
[346226221,1734783039615,-500.0,0.00018815,2]
[346226222,1734783039624,-500.0,0.00018815,2]
[346226223,1734783039633,-500.0,0.00018815,2]
[346226224,1734783039642,-500.0,0.00018815,2]
[346226225,1734783039651,-331.23007541,0.00018815,2]
[346226252,1734783040829,-168.76992459,0.00018815,2]
[346226254,1734783040839,-500.0,0.00018815,2]
[346226256,1734783040848,-500.0,0.00018815,2]
[346226258,1734783040857,-500.0,0.00018815,2]
[346226260,1734783040867,-500.0,0.00018815,2]
[346226262,1734783040876,-63.44819002,0.00018815,2]
[346226303,1734783043705,-196.03863275,0.0001746,2]
[346226304,1734783043715,-436.55180998,0.00018815,2]
[346226305,1734783043725,-500.0,0.00018815,2]
[346226306,1734783043734,-500.0,0.00018815,2]
[346226307,1734783043745,-500.0,0.00018815,2]
[346226308,1734783043755,-500.0,0.00018815,2]
[346226310,1734783043764,-500.0,0.00018815,2]
[346226312,1734783043774,-500.0,0.00018815,2]
[346226314,1734783043783,-342.04518668,0.00018815,2]
[346226343,1734783046711,-157.95481332,0.00018815,2]
[346226344,1734783046721,-500.0,0.00018815,2]
[346226345,1734783046731,-500.0,0.00018815,2]
[346226346,1734783046740,-500.0,0.00018815,2]
[346226347,1734783046749,-500.0,0.00018815,2]
[346226348,1734783046758,-416.79518668,0.00018815,2]
[346226351,1734783046778,-83.20481332,0.00018815,2]
[346226353,1734783046788,-500.0,0.00018815,2]
[346226355,1734783046797,-500.0,0.00018815,2]
[346226357,1734783046806,-500.0,0.00018815,2]
[346226359,1734783046816,-500.0,0.00018815,2]
[346226361,1734783046826,-500.0,0.00018815,2]
[346226362,1734783046835,-500.0,0.00018815,2]
[346226364,1734783046844,-500.0,0.00018815,2]
[346226366,1734783046853,-500.0,0.00018815,2]
[346226368,1734783046862,-534.0,0.00018816,2]
[346226370,1734783046872,-2138.0,0.00018816,2]
[346226372,1734783046882,-2362.0,0.00018816,2]
[346226374,1734783046891,-1000.0,0.000189,2]
[346226376,1734783046900,-511.03102161,0.00018978,2]
[346226378,1734783046910,-160.0,0.00018997,2]
[346226380,1734783046919,-165.01277439,0.00018997,2]
[346226381,1734783046928,-160.59014867,0.00018998,2]
[346226384,1734783046939,-23256.94198901,0.00018998,7]
[346226478,1734783727260,411.6861664,0.00017087,2]
[346226479,1734783769027,710.0479808,0.0001713,2]
[346226483,1734783951978,24535.3743305,0.00017137,2]
[346226489,1734783999774,165.915994,0.00013973,2]
[346226555,1734784232049,-156.96504846,0.000175,2]
[346226557,1734784232060,-1505.59691374,0.000175,2]
[346226559,1734784232071,-1172.97864488,0.00017889,2]
[346226561,1734784232082,-737.92370758,0.00017899,2]
[346226563,1734784232093,-269.518729,0.00017954,2]
[346226565,1734784232103,-300.0,0.00017999,2]
[346226567,1734784232112,-300.0,0.00017999,2]
[346226569,1734784232122,-1999.999999,0.00018,2]
[346226571,1734784232133,-590.50173485,0.00018,2]
[346226575,1734784232159,-0.75826515,0.00018,2]
[346226577,1734784232169,-438.80673485,0.00018,2]
[346226584,1734784232226,-61.19326515,0.00018,2]
[346226586,1734784232236,-500.0,0.00018,2]
[346226588,1734784232245,-500.0,0.00018,2]
[346226590,1734784232255,-235.87,0.0001805,2]
[346226592,1734784232264,-809.56212766,0.00018172,2]
[346226594,1734784232274,-500.0,0.00018173,2]
[346226596,1734784232284,-197.32604464,0.00018299,2]
[346226598,1734784232294,-500.0,0.00018299,2]
[346226600,1734784232303,-500.0,0.00018299,2]
[346226602,1734784232312,-500.0,0.00018299,2]
[346226604,1734784232321,-500.0,0.00018299,2]
[346226606,1734784232331,-608.0933036,0.00018299,2]
[346226608,1734784232340,-500.0,0.00018299,2]
[346226610,1734784232349,-503.89786743,0.00018299,2]
[346226612,1734784232358,-500.0,0.00018299,2]
[346226614,1734784232368,-500.0,0.00018299,2]
[346226616,1734784232377,-500.0,0.00018299,2]
[346226618,1734784232386,-500.0,0.00018299,2]
[346226620,1734784232395,-500.0,0.00018299,2]
[346226622,1734784232405,-500.0,0.00018299,2]
[346226624,1734784232414,-500.0,0.00018299,2]
[346226626,1734784232423,-500.0,0.00018299,2]
[346226628,1734784232432,-500.0,0.00018299,2]
[346226630,1734784232444,-375.60860835,0.00018299,2]
[346226632,1734784232454,-500.0,0.00018299,2]
[346226634,1734784232463,-500.0,0.00018299,2]
[346226636,1734784232473,-500.0,0.00018299,2]
[346226638,1734784232483,-500.0,0.00018299,2]
[346226640,1734784232492,-469.10404032,0.00018299,2]
[346226642,1734784232502,-500.0,0.00018299,2]
[346226644,1734784232512,-500.0,0.00018299,2]
[346226646,1734784232522,-500.0,0.00018299,2]
[346226648,1734784232534,-500.0,0.00018299,2]
[346226650,1734784232544,-500.0,0.00018299,2]
[346226652,1734784232553,-500.0,0.00018299,2]
[346226654,1734784232563,-500.0,0.00018299,2]
[346226656,1734784232573,-500.0,0.00018299,2]
[346226658,1734784232583,-59437.30259266,0.000183,2]
[346226660,1734784232593,-181.03682095,0.000183,2]
[346226662,1734784232602,-200.5461405,0.000184,2]
[346226664,1734784232612,-2000.0,0.000185,2]
[346226666,1734784232621,-200.54614044,0.00018614,2]
[346226668,1734784232630,-535.14517365,0.0001863,2]
[346226670,1734784232639,-200.54614044,0.00018829,2]
[346226672,1734784232649,-5359.809793,0.00018848,2]
[346226674,1734784232658,-164.0794574,0.000189,2]
[346226676,1734784232670,-16.95736354,0.000189,2]
[346226678,1734784232680,-807.39506958,0.00018936,2]
[346226680,1734784232691,-2138.0,0.00018939,2]
[346226682,1734784232700,-534.0,0.00018939,2]
[346226684,1734784232709,-2362.0,0.00018939,2]
[346226686,1734784232719,-300.595,0.00018939,2]
[346226688,1734784232729,-1000.0,0.00018986,2]
[346226690,1734784232739,-2452.48990012,0.0001899,2]
[346226976,1734784237785,-9027.06994068,0.0001899,2]
[346226978,1734784237796,-1281.8770912,0.0001899,2]
[346226984,1734784237843,-6242.56129673,0.0001899,2]
[346227133,1734784896930,166.240407,0.00013973,2]
[346227136,1734785162483,250.0,0.00017195,2]
[346227137,1734785329910,2782.7832582,0.00017182,2]
[346227587,1734785436188,-269.5187306,0.00017324,2]
[346227589,1734785436198,-319.0263002,0.00017623,2]
[346227591,1734785436207,-391.5289171,0.00017773,2]
[346227593,1734785436217,-300.0,0.00017777,2]
[346227595,1734785436227,-527.830992,0.00017778,2]
[346227597,1734785436238,-362.5666191,0.00017778,2]
[346227601,1734785436263,-3752.43066428,0.00017778,2]
[346227603,1734785436304,-780.4555002,0.00017778,2]
[346227668,1734785438090,-18033.27063382,0.00017778,2]
[346227669,1734785438102,-1443.4455906,0.00017778,2]
[346227670,1734785438111,-226.046,0.0001805,2]
[346227671,1734785438120,-1000.0,0.00018799,2]
[346227672,1734785438130,-5359.809793,0.0001881,2]
[346227673,1734785438140,-2138.0,0.00018866,2]
[346227674,1734785438149,-534.0,0.00018866,2]
[346227675,1734785438159,-2360.0,0.00018866,2]
[346227676,1734785438169,-500.0,0.00018899,2]
[346227677,1734785438178,-163.23378226,0.00018899,2]
[346227678,1734785438187,-208.40095648,0.00018899,2]
[346227679,1734785438197,-222.6553186,0.00018899,2]
[346227680,1734785438206,-500.0,0.00018899,2]
[346227681,1734785438216,-2125.65041415,0.000189,2]
[346227695,1734785440314,-461.38958585,0.000189,2]
[346227696,1734785440323,-1000.0,0.00018974,2]
[346227697,1734785440333,-2148.3866514,0.0001899,2]
[346227698,1734785440347,-4002.38710401,0.0001899,2]
[346227699,1734785440363,-14082.29322282,0.0001899,2]
[346227763,1734785635417,5000.0,0.00017251,2]
[346227765,1734785834846,179.7741458,0.00017251,2]
[346227781,1734785900098,164.663126,0.00013973,2]
[346227782,1734786014874,5000.0,0.00017251,2]
[346227783,1734786297528,2282.26,0.00017251,2]
[346227854,1734786632421,-684.33,0.0001769,2]
[346227856,1734786632431,-313.250427,0.00017851,2]
[346227874,1734786632671,-6871.88776978,0.0001794,2]
[346227916,1734786638337,-192.54657492,0.0001794,2]
[346227919,1734786638347,-232.989,0.0001805,2]
[346227922,1734786638358,-300.0,0.00018672,2]
[346227924,1734786638367,-300.0,0.00018672,2]
[346227927,1734786638377,-530.0,0.00018673,2]
[346227929,1734786638386,-1504.614,0.00018673,2]
[346227931,1734786638396,-2360.0,0.00018673,2]
[346227933,1734786638409,-150.964,0.00018866,2]
[346227935,1734786638419,-868.36717269,0.00018899,2]
[346228201,1734786643814,-111.36586206,0.00018899,2]
[346228202,1734786643826,-979.73303473,0.00018899,2]
[346228203,1734786643835,-979.73303473,0.000189,2]
[346228204,1734786643845,-979.73303473,0.000189,2]
[346228205,1734786643855,-703.924125,0.000189,2]
[346228206,1734786643864,-153.0,0.000189,2]
[346228207,1734786643874,-153.0,0.000189,2]
[346228208,1734786643883,-979.73303473,0.000189,2]
[346228209,1734786643893,-405.8903534,0.00018904,2]
[346228210,1734786643904,-362.5952416,0.00018904,2]
[346228211,1734786643918,-10206.37913467,0.0001899,2]
[346228212,1734786643928,-151.0,0.00018997,2]
[346228213,1734786643943,-188.62353002,0.00018997,2]
[346228214,1734786643964,-500.0,0.00018997,2]
[346228215,1734786643979,-500.0,0.00018997,2]
[346228216,1734786643990,-363.0,0.00018997,2]
[346228217,1734786643999,-500.0,0.00018997,2]
[346228218,1734786644010,-11016.68961435,0.00018998,2]
[346228219,1734786644024,-6210.0,0.00018998,2]
[346228228,1734786645026,163.42629027,0.00017,2]
[346228297,1734786646651,-194.42585979,0.00018765,2]